Cogmind - Beta 16 @@@ ROGUE MODE // 2025.10.25 @ 22:31:58 Player: Great Strength True Martial Result: Destroyed by Y-54 Guardian with Flak Gun Performance ------------- Evolutions (4) 2000 Regions Visited (11) 2200 Robots Destroyed (147) 735 Value Destroyed (4504) 4504 Prototype IDs (48) 960 Alien Tech Used (0) 0 Bonus (546) 546 TOTAL SCORE: 10945 Bonus ------- High Alert Combat Kills 180 Follower Combat Kills 66 Aligned with FarCom 300 Cogmind --------- Core Integrity 0/850 Matter 207/300 Energy 100/100 System Corruption 4% Temperature Cool (0) Movement Core (50) Location -6/Factory Parts ------- > --- POWER (1) -------- (None) > --- PROPULSION (4) --- (None) > --- UTILITY (8) ------ (None) > --- WEAPON (2) ------- (None) > --- INVENTORY (5) ---- Experimental Sensor Array Improved Terrain Scanner Long-range Missile Launcher Long-range Missile Launcher Impact Mace Peak State ------------ > --- POWER ------------ Light Fission Core > --- PROPULSION ------- Improved Flight Unit Improved Flight Unit Improved Flight Unit Improved Flight Unit > --- UTILITY ---------- Small Storage Unit Advanced Weight Redist. System Enhanced Optical Array Improved Signal Interpreter Improved Reaction Control System Force Field Improved System Shield System Guard > --- WEAPON ----------- Improved Spread Laser Power Maul > --- INVENTORY -------- Light Fission Core Improved Medium Treads Experimental Sensor Array Cloaking Device Recalibrator Thermic Laser Heavy Missile Launcher Remote Datajack [Rating: 62] Favorites ----------- Power Improved Deuterium Engine Engine Improved Deuterium Engine Power Core Light Fission Core Reactor Antimatter Reactor Propulsion Light Treads Treads Light Treads Leg Aluminum Leg Flight Unit Improved Flight Unit Utility Large Storage Unit Device ECM Suite Storage Large Storage Unit Processor Improved Signal Interpreter Hackware Hacking Suite Protection Medium Reactive Plating Weapon Heavy Assault Rifle Energy Gun Particle Gun Energy Cannon EM Pulse Cannon Ballistic Gun Heavy Assault Rifle Ballistic Cannon Assault Cannon Launcher Mini Grenade Launcher Special Weapon Remote Datajack Impact Weapon Power Maul Slashing Weapon Great Axe Special Melee Weapon Datajack Build | -11 -10 -10 -10 -9 -8 -7 -7 -7 -6 -6 -6 ------- Run | Yrd Mat Min Exi Min Mat Fac Was Fac Fac Was Fac Slots Evolved 8 | . . . . . 4 2 . . 2 . . Power . | . . . . . . . . . . . . Propulsion 2 | . . . . . 1 . . . 1 . . Utility 6 | . . . . . 3 2 . . 1 . . Weapon . | . . . . . . . . . . . . Parts Attached 119 | 6 13 5 2 1 24 29 2 3 11 1 22 Power 17 | 1 3 1 . . 2 4 1 . 2 . 3 Engine 10 | 1 3 1 . . 2 2 . . 1 . . Core 6 | . . . . . . 2 . . 1 . 3 Reactor 1 | . . . . . . . 1 . . . . Propulsion 27 | 2 3 1 . . 8 9 . 2 2 . . Treads 18 | 2 1 1 . . 8 6 . . . . . Leg 2 | . 2 . . . . . . . . . . Wheel . | . . . . . . . . . . . . Hover . | . . . . . . . . . . . . Flight 7 | . . . . . . 3 . 2 2 . . Utility 45 | 1 5 1 1 . 10 7 . . 5 1 14 Device 23 | . 3 1 . . 5 3 . . 1 1 9 Storage 4 | 1 2 . . . . . . . . . 1 Processor 6 | . . . 1 . 1 1 . . 3 . . Hackware 7 | . . . . . . 2 . . 1 . 4 Protection 5 | . . . . . 4 1 . . . . . Artifact . | . . . . . . . . . . . . Weapon 30 | 2 2 2 1 1 4 9 1 1 2 . 5 Energy Gun 10 | 2 2 . . . 3 1 . . 1 . 1 Energy Cannon 4 | . . . . . . 3 . . . . 1 Ballistic Gun 4 | . . 2 . 1 . 1 . . . . . Ballistic Cannon 1 | . . . . . . 1 . . . . . Launcher 5 | . . . . . 1 1 1 . 1 . 1 Special Weapon 2 | . . . . . . 1 . . . . 1 Impact Weapon 2 | . . . . . . . . 1 . . 1 Slashing Weapon 1 | . . . . . . 1 . . . . . Piercing Weapon . | . . . . . . . . . . . . Special Melee Weapon 1 | . . . 1 . . . . . . . . Unidentified Prototypes 7 | . . 1 . . 2 . . . 1 . 3 Parts Lost 40 | . 3 1 . . 5 17 . 2 . . 12 Power 5 | . . . . . . 3 . . . . 2 Propulsion 11 | . 1 1 . . . 6 . . . . 3 Utility 14 | . 1 . . . 2 4 . 1 . . 6 Weapon 10 | . 1 . . . 3 4 . 1 . . 1 Highest Loss Streak 12 | . 1 1 . . 2 6 . 1 . . 12 To Critical Strikes . | . . . . . . . . . . . . Average Backups 11 | 2 11 14 15 15 14 12 5 4 7 8 7 Power 1 | . 2 1 1 1 1 1 1 1 1 1 . Propulsion 2 | 1 3 3 4 4 3 2 . . . 1 . Utility 4 | . 3 6 7 8 6 4 2 2 3 3 4 Weapon 2 | . 2 1 2 1 2 3 2 1 2 2 1 Tool/Special . | . . . . . . . . . . . . Unused Backups 28 | . 4 4 . . 4 6 . . 5 . 5 Power 7 | . 1 2 . . 2 . . . 2 . . Propulsion 5 | . . 2 . . 2 . . . . . 1 Utility 6 | . 1 . . . . 2 . . 2 . 1 Weapon 9 | . 2 . . . . 3 . . 1 . 3 Tool/Special 1 | . . . . . . 1 . . . . . Average Slot Usage (%) 93 | . 92 99 100 100 98 88 76 76 95 100 95 Engine 7 | . 13 14 14 14 8 4 . . . . . Core 1 | . . . . . . 2 7 . 2 6 5 Treads 17 | . 22 28 28 28 26 16 . . . . . Flight 6 | . . . . . . 3 23 23 26 26 22 Device 13 | . 7 14 5 . 18 17 15 12 6 6 15 Storage 9 | . 14 14 14 14 9 7 . . 5 6 6 Processor 9 | . . . 8 14 7 13 15 15 28 26 8 Hackware 3 | . . . . . . 3 . . . 6 20 Protection 3 | . . . . . 9 2 7 7 6 6 . Energy Gun 8 | . 28 4 . . 10 6 . . 1 6 5 Ballistic Gun 5 | . . 23 15 28 6 . . . . . . Special Weapon 1 | . . . . . . 1 7 6 4 . . Impact Weapon 1 | . . . . . . . . 2 6 6 5 Peak Build Rating 62 | 6 13 20 20 18 32 42 31 36 59 60 62 Average Rating 31 | 4 10 18 17 18 27 36 27 32 53 57 57 On Entrance 25 | . 6 11 20 17 18 30 27 31 32 57 57 Avg Prop Armor Cover (%) . | . . . . . . . . . . . . Naked Turns . | . . . . . . . . . . . . Heaviest Build 65 | 14 32 35 35 33 61 65 22 25 28 20 31 Greatest Support 71 | 40 40 40 40 40 63 71 22 24 30 29 29 Greatest Overweight (x) 2 | 2 1 . . . 1 1 . 1 . . 1 Average Overweight (x) . | . . . . . . . . . . . . Largest Inventory Capacity 25 | 8 25 15 15 15 15 15 5 5 8 8 25 Average Capacity 12 | 6 14 15 15 15 15 13 5 5 7 8 8 Most Carried 15 | 4 15 15 15 15 15 15 5 5 8 8 8 Average Carried 11 | 2 11 14 14 15 14 12 5 4 7 8 7 Final Capacity 15 | 8 15 15 15 15 15 5 5 5 8 8 5 Final Carried 15 | 4 15 15 15 15 14 5 5 5 8 8 5 Class Distribution -------------------- 29% | Skirmisher 23% | Scavenger-Mutant 12% | Mutant 8% | Scavenger-Sprinter 6% | Scavenger-Skirmisher 6% | Sprinter 5% | Hacker-Mutant 3% | Hacker-Sprinter Dominant Class ---------------- Scavenger-Mutant | -10/Materials Scavenger-Mutant | -10/Mines Scavenger-Mutant | -10/Exiles Scavenger-Mutant | -9/Mines Skirmisher | -8/Materials Skirmisher | -7/Factory Scavenger-Sprinter | -7/Waste Scavenger-Sprinter | -7/Factory Sprinter | -6/Factory Machinist-Sprinter | -6/Waste Hacker-Mutant | -6/Factory Resources | -11 -10 -10 -10 -9 -8 -7 -7 -7 -6 -6 -6 ----------- Run | Yrd Mat Min Exi Min Mat Fac Was Fac Fac Was Fac Matter Collected 2711 | 217 248 195 . 84 653 834 61 49 112 55 203 Remotely . | . . . . . . . . . . . . Salvage Created 4811 | . 711 253 . 67 2232 1227 . 124 112 . 85 Parts 274 | . 37 12 . 8 142 60 . 7 1 . 7 Haulers Intercepted 7 | . 2 . . . 3 1 . . 1 . . Recyclers Shooed 2 | . . . . . 1 1 . . . . . Parts Field Recycled 7 | . . . . . . . . . . . 7 Retrieved Matter 139 | . . . . . . . . . . . 139 Parts Self-Destructed . | . . . . . . . . . . . . Prevented . | . . . . . . . . . . . . Parts Restored . | . . . . . . . . . . . . Kills | -11 -10 -10 -10 -9 -8 -7 -7 -7 -6 -6 -6 ------- Run | Yrd Mat Min Exi Min Mat Fac Was Fac Fac Was Fac Combat Hostiles Destroyed 92 | . 13 6 . 3 39 28 . 3 . . . Guns 55 | . 13 6 . 3 22 11 . . . . . Cannons 9 | . . . . . . 9 . . . . . AOE 28 | . . . . . 17 8 . 3 . . . Classes Destroyed 16 | . 7 1 . . 5 3 . . . . . Worker 8 | . 2 . . . 3 . . 1 . . 2 Builder 16 | . . . . . 10 3 . 2 . . 1 Tunneler 4 | . . 1 . 1 2 . . . . . . Hauler 7 | . 2 . . . 3 1 . . 1 . . Recycler 5 | . 1 . . . 2 2 . . . . . Operator 10 | . 2 . . . 4 1 . . 1 . 2 Watcher 5 | . . . . . 4 1 . . . . . Swarmer 15 | . 1 . . 3 4 7 . . . . . Grunt 50 | . 11 6 . . 24 7 . 2 . . . Brawler 1 | . . . . . . 1 . . . . . Duelist 2 | . . . . . 1 1 . . . . . Sentry 10 | . . . . . 8 2 . . . . . Specialist 2 | . . . . . . 2 . . . . . Hunter 5 | . . . . . 2 3 . . . . . Programmer 6 | . . . . . . 5 . 1 . . . Subdweller 1 | . 1 . . . . . . . . . . Best Kill Streak 13 | . 3 2 . 3 13 5 . 4 1 . 2 Combat Bots Only 9 | . 2 2 . 3 9 4 . 3 . . . Max Kills in Single Turn 5 | . 1 2 . 2 5 3 . 2 1 . 1 Gunslinging 1 | . . 1 . 1 . . . . . . . Exploded 3 | . . . . . 3 2 . 1 . . . Melee . | . . . . . . . . . . . . Uniques/NPCs Destroyed . | . . . . . . . . . . . . Combat | -11 -10 -10 -10 -9 -8 -7 -7 -7 -6 -6 -6 -------- Run | Yrd Mat Min Exi Min Mat Fac Was Fac Fac Was Fac Hostile Shots Fired 808 | . 93 32 . 14 151 285 . 31 5 . 197 Missed 267 | . 23 8 . 6 35 91 . 16 2 . 86 Hits 541 | . 70 24 . 8 116 194 . 15 3 . 111 Melee 7 | . . . . . 1 5 . . . . 1 Projectile 534 | . 70 24 . 8 115 189 . 15 3 . 110 Critical Strikes 16 | . 3 1 . . 2 5 . . . . 5 Part Disruptions 1 | . . . . . . 1 . . . . . Damage Taken 7901 | . 806 331 . 68 1879 2879 . 358 58 . 1522 Core 1647 | . 150 58 . . 194 303 . 91 39 . 812 Absorbed by Shields . | . . . . . . . . . . . . Redirected to Shielding 27 | . . . . . 13 4 . 4 6 . . Ignored by Resistances 98 | . . . . . 98 . . . . . . Regen/Repaired (Parts) 80 | . . . . . . 18 . . . . 62 Core Remaining (%) 55 | 100 . . . 16 64 . . 43 . . . Volleys Fired 291 | . 52 30 . 9 101 78 1 5 2 . 13 Largest 2 | . 2 2 . 2 2 2 1 1 1 . 1 Hottest 135 | . 130 53 . 46 113 135 5 30 75 . 85 Shots Fired 547 | . 104 60 . 18 195 149 1 5 2 . 13 Gun 455 | . 104 60 . 18 174 84 . . 2 . 13 Cannon 53 | . . . . . . 53 . . . . . Launcher 38 | . . . . . 21 12 . 5 . . . Special 1 | . . . . . . . 1 . . . . Kinetic 183 | . . 60 . 18 62 43 . . . . . Thermal 216 | . 100 . . . 44 57 . . 2 . 13 Explosive 38 | . . . . . 21 12 . 5 . . . Electromagnetic 109 | . 4 . . . 68 37 . . . . . Robot Hit Streak 23 | . 15 18 . 6 21 23 11 12 3 . 5 Robot Miss Streak 7 | . 4 5 . 3 3 7 . 1 3 . 2 Penetration Max . | . . . . . . . . . . . . Secondary Targets 2 | . . 1 . 1 . . . . . . . Max Gunslinging Chain 1 | . . 1 . 1 . . . . . . . Shots Hit Robots 378 | . 67 34 8 10 128 111 1 3 5 . 11 Core Hits 257 | . 28 15 . 5 121 71 . 8 5 . 4 Critical Kills . | . . . . . . . . . . . . Critical Parts Destroyed 2 | . . . . . . . . 1 1 . . Critical Strikes 20 | . 7 . . . 2 7 . 1 1 . 2 Burn 15 | . 7 . . . 2 4 . . . . 2 Blast 2 | . . . . . . 2 . . . . . Corrupt 1 | . . . . . . 1 . . . . . Smash 2 | . . . . . . . . 1 1 . . Melee Attacks 75 | . . . 8 . . 14 . 16 22 . 15 Impact 53 | . . . . . . . . 16 22 . 15 Slashing 14 | . . . . . . 14 . . . . . Piercing . | . . . . . . . . . . . . Sneak Attacks 14 | . . . 7 . . . . 2 2 . 3 Combat Hostiles . | . . . . . . . . . . . . Follow-up Attacks . | . . . . . . . . . . . . Damage Inflicted 11259 | . 1004 624 . 157 4500 3617 . 573 268 . 516 Guns 5311 | . 1004 624 . 157 2175 1181 . . 44 . 126 Cannons 871 | . . . . . . 871 . . . . . Explosions 4225 | . . . . . 2325 1565 . 335 . . . Melee 852 | . . . . . . . . 238 224 . 390 Ramming . | . . . . . . . . . . . . Kinetic 1867 | . . 624 . 157 468 618 . . . . . Thermal 3305 | . 963 . . . 707 1465 . . 44 . 126 Explosive 3545 | . . . . . 2170 1040 . 335 . . . Electromagnetic 1690 | . 41 . . . 1155 494 . . . . . Impact 852 | . . . . . . . . 238 224 . 390 Slashing . | . . . . . . . . . . . . Piercing . | . . . . . . . . . . . . Highest Corruption 7 | . . . . . . 4 4 7 . . 6 Average Corruption 3 | . . . . . . 2 4 4 . . 2 Corruption Purged 9 | . . . . . . 3 . . . . 6 Corruption Blocked . | . . . . . . . . . . . . Effects 70 | . . . . . . 42 2 23 . . 3 Message Errors 24 | . . . . . . 15 1 6 . . 2 Matter Fused 19 | . . . . . . 12 1 5 . . 1 Heat Flow Errors 6 | . . . . . . 1 . 5 . . . Energy Discharges 10 | . . . . . . 5 . 5 . . . Parts Fused 1 | . . . . . . . . 1 . . . Data Loss (minor) 4 | . . . . . . 3 . 1 . . . Data Loss (major) 4 | . . . . . . 4 . . . . . Alerts 1 | . . . . . . 1 . . . . . Weapon Failures 1 | . . . . . . 1 . . . . . Overload Shots . | . . . . . . . . . . . . Overflow Damage 713 | . . . . . 62 122 . 218 126 . 185 Projectiles 31 | . . . . . . 31 . . . . . Explosions 153 | . . . . . 62 91 . . . . . Melee 529 | . . . . . . . . 218 126 . 185 Knockbacks 5 | . . . . . . 3 . 1 . . 1 Impact 2 | . . . . . . . . 1 . . 1 Kinetic 3 | . . . . . . 3 . . . . . Secondary . | . . . . . . . . . . . . Self-Inflicted Damage 571 | . . . . . 227 311 . 33 . . . Shots 16 | . . . . . 8 7 . 1 . . . Rammed . | . . . . . . . . . . . . Targets Rammed . | . . . . . . . . . . . . Kicked . | . . . . . . . . . . . . Crushed . | . . . . . . . . . . . . Highest Temperature 411 | . 333 59 . 1 411 240 . 248 56 . 144 Average Temperature 87 | . 112 20 . 1 100 51 . 111 31 . 56 Received Heat Transfer 1970 | . 354 204 . 20 846 360 . 96 27 . 63 Effects 9 | . 1 . . . 7 1 . . . . . Shutdowns 3 | . . . . . 3 . . . . . . Energy Bleed 4 | . 1 . . . 2 1 . . . . . Short Circuit 1 | . . . . . 1 . . . . . . Damage (minor) 1 | . . . . . 1 . . . . . . Siege Activations . | . . . . . . . . . . . . Martial Activations . | . . . . . . . . . . . . Shielding Activations . | . . . . . . . . . . . . Robots Disrupted . | . . . . . . . . . . . . Combat Hostiles . | . . . . . . . . . . . . Robots Corrupted 3 | . . . . . . . . 1 1 . 1 Combat Hostiles . | . . . . . . . . . . . . Parts Fried 13 | . . . . . 6 . . 4 3 . . Impact Corruptions 11 | . . . . . . . . 4 3 . 4 Robots Melted . | . . . . . . . . . . . . Combat Hostiles . | . . . . . . . . . . . . Parts Melted 13 | . 7 . . . 2 3 . . . . 1 Heat Transferred 7590 | . 2886 . . . 1569 2550 . . 35 . 550 Parts Sabotaged 3 | . . . . . . . . . . . 3 Parts Stolen . | . . . . . . . . . . . . Parts Stripped . | . . . . . . . . . . . . Power Chain Reactions 2 | . . . . . 2 . . . . . . Alert | -11 -10 -10 -10 -9 -8 -7 -7 -7 -6 -6 -6 ------- Run | Yrd Mat Min Exi Min Mat Fac Was Fac Fac Was Fac Maximum Alert Level 3 | . . . . . 3 1 . . . . . Low Security (%) 75 | 100 100 100 . 100 48 51 100 100 100 100 100 Level 1 19 | . . . . . 27 48 . . . . . Level 2 4 | . . . . . 24 . . . . . . Level 3 . | . . . . . . . . . . . . Level 4 . | . . . . . . . . . . . . Level 5 . | . . . . . . . . . . . . High Security . | . . . . . . . . . . . . Max Security . | . . . . . . . . . . . . Peak Influence 736 | . 146 77 . 56 736 385 133 100 44 1 99 Initial 334 | . . . . . . 334 133 65 44 1 . Average 122 | . 42 10 . 7 263 201 114 11 10 . 17 Influence Increases 3612 | . 456 217 . 84 1308 940 . 159 104 . 344 Destroy 0b10 Robot/C 1844 | . 240 160 . 48 776 560 . 60 . . . Destroy 0b10 Robot/NC 273 | . 35 5 . 4 139 40 . 15 10 . 25 Destroy Leader 508 | . 74 30 . 8 212 162 . 20 2 . . Allied During Kill 6 | . . 6 . . . . . . . . . Successful Hack 160 | . 26 . . . 8 41 . 28 14 . 43 Disable Machine 165 | . . 15 . . 15 60 . . 15 . 60 Destroy Structure 332 | . 6 1 . . 158 77 . 21 18 . 51 Partial Spotted 30 | . . . . . . . . . . . 30 Lose Combat Pursuer 294 | . 75 . . 24 . . . 15 45 . 135 Influence Decreases 3612 | . 456 217 . 84 572 1294 289 162 191 3 344 Entered New Map 727 | . . . . . . 402 249 28 46 2 . Time Decay 2583 | . 436 167 . 84 542 722 40 124 145 1 322 Lost Part 262 | . 20 10 . . 30 170 . 10 . . 22 Lost Ally 40 | . . 40 . . . . . . . . . Squads Dispatched 74 | . 5 . . . 14 29 . 5 11 . 10 Investigation 31 | . 2 . . . 4 13 . 3 6 . 3 Extermination 15 | . . . . . . 7 . 1 2 . 5 Reinforcement 19 | . 3 . . . 6 5 . . 3 . 2 Assault . | . . . . . . . . . . . . Garrison 9 | . . . . . 4 4 . 1 . . . Intercept . | . . . . . . . . . . . . Searches Triggered . | . . . . . . . . . . . . Construction Impeded 3 | . . . . . 3 . . . . . . Haulers Reinforced 3 | . . . . . . 1 . . 2 . . Active Scanning Responses . | . . . . . . . . . . . . Cargo Convoy Interrupts 2 | . . . . . . 1 . . . . 1 Stealth | -11 -10 -10 -10 -9 -8 -7 -7 -7 -6 -6 -6 --------- Run | Yrd Mat Min Exi Min Mat Fac Was Fac Fac Was Fac Distress Signals 19 | . 5 . . . 8 4 . . 1 1 . Communications Jammed . | . . . . . . . . . . . . Distress Signals . | . . . . . . . . . . . . Times Spotted 221 | . 33 8 . 10 67 43 . 11 8 5 36 Peak Tracking Total 24 | . 8 4 . 18 9 4 . 7 3 4 24 Tactical Retreats 44 | . 4 . . 2 14 14 . 1 2 . 7 ECM-based Alert Blocks 34 | . . . . . 19 15 . . . . . Traps | -11 -10 -10 -10 -9 -8 -7 -7 -7 -6 -6 -6 ------- Run | Yrd Mat Min Exi Min Mat Fac Was Fac Fac Was Fac Traps Triggered 7 | . 2 . . . 1 2 . 1 1 . . Indirectly . | . . . . . . . . . . . . Trap Hack Attempts . | . . . . . . . . . . . . Triggered . | . . . . . . . . . . . . Disarmed . | . . . . . . . . . . . . Reprogrammed . | . . . . . . . . . . . . Reused . | . . . . . . . . . . . . Traps Extracted . | . . . . . . . . . . . . Installed . | . . . . . . . . . . . . Triggered . | . . . . . . . . . . . . Machines | -11 -10 -10 -10 -9 -8 -7 -7 -7 -6 -6 -6 ---------- Run | Yrd Mat Min Exi Min Mat Fac Was Fac Fac Was Fac Machines Disabled 12 | . . 2 . . 1 4 . . 1 . 4 Max in Single Turn 3 | . . 1 . . 1 3 . . 1 . 3 Machines Repaired . | . . . . . . . . . . . . Machines Dismantled . | . . . . . . . . . . . . Machines Sabotaged . | . . . . . . . . . . . . Overloaded Fab Kills . | . . . . . . . . . . . . Hacking | -11 -10 -10 -10 -9 -8 -7 -7 -7 -6 -6 -6 --------- Run | Yrd Mat Min Exi Min Mat Fac Was Fac Fac Was Fac Machines Accessed 57 | . 5 . 5 . 6 14 . 4 8 . 15 Terminals 26 | . 3 . . . 3 8 . 1 3 . 8 Fabricators 8 | . . . . . . 3 . 2 1 . 2 Repair Stations 3 | . . . . . . 1 . . . . 2 Recycling Units 11 | . 2 . . . 2 2 . . 3 . 2 Scanalyzers 3 | . . . . . . . . 1 1 . 1 Garrison Access 1 | . . . . . 1 . . . . . . Total Hacks 203 | . 14 . 50 . 18 38 . 8 20 . 55 Successful 115 | . 9 . 50 . 6 11 . 4 8 . 27 Failed 87 | . 5 . . . 12 27 . 4 11 . 28 Catastrophic 24 | . . . . . 2 13 . 2 3 . 4 Database Lockouts 1 | . . . . . . . . . 1 . . Manual 53 | . 3 . 1 . 11 16 . 3 1 . 18 Terminals 85 | . 9 . . . 10 23 . 2 8 . 33 Fabricators 23 | . . . . . . 8 . 5 3 . 7 Repair Stations 10 | . . . . . . 2 . . . . 8 Recycling Units 27 | . 5 . . . 4 5 . . 7 . 6 Scanalyzers 4 | . . . . . . . . 1 2 . 1 Garrison Access 4 | . . . . . 4 . . . . . . Terminal Hacks 69 | . 4 . 50 . 1 2 . . 1 . 11 Record 50 | . . . 49 . . 1 . . . . . Part Schematic 2 | . . . . . 1 . . . . . 1 Prototype ID Bank 1 | . . . . . . . . . . . 1 Level Access Points 1 | . . . . . . . . . . . 1 Branch Access Points 3 | . 1 . . . . 1 . . . . 1 Emergency Access Points 1 | . . . . . . . . . . . 1 Alert Level 1 | . . . . . . . . . . . 1 Locate Traps 3 | . . . . . . . . . . . 3 Dispatch Records 1 | . 1 . . . . . . . . . . Recall Investigation 1 | . . . . . . . . . . . 1 Hauler Manifests 2 | . 1 . . . . . . . 1 . . Registered Components 1 | . 1 . . . . . . . . . . Zone Layout 1 | . . . . . . . . . . . 1 Proto ID Catalog 1 | . . . 1 . . . . . . . . Fabricator Hacks 11 | . . . . . . 3 . 4 2 . 2 Load Schematic 6 | . . . . . . 2 . 2 1 . 1 Build 5 | . . . . . . 1 . 2 1 . 1 Repair Station Hacks 10 | . . . . . . 2 . . . . 8 Scan Component 5 | . . . . . . 1 . . . . 4 Repair 5 | . . . . . . 1 . . . . 4 Recycling Unit Hacks 19 | . 4 . . . 4 4 . . 3 . 4 Process 5 | . 1 . . . 1 1 . . 1 . 1 Report Inventory 11 | . 3 . . . 2 2 . . 2 . 2 Retrieve Matter 2 | . . . . . 1 1 . . . . . Retrieve Components 1 | . . . . . . . . . . . 1 Scanalyzer 2 | . . . . . . . . . 1 . 1 Retrieve Study 2 | . . . . . . . . . 1 . 1 Garrison Access Hacks . | . . . . . . . . . . . . Unauthorized Hacks 4 | . 1 . . . 1 . . . 1 . 1 Terminals 4 | . 1 . . . 1 . . . 1 . 1 Operators 4 | . 1 . . . 1 . . . 1 . 1 Fabricators . | . . . . . . . . . . . . Repair Stations . | . . . . . . . . . . . . Recycling Units . | . . . . . . . . . . . . Scanalyzers . | . . . . . . . . . . . . Garrison Access . | . . . . . . . . . . . . Data Cores Recovered 2 | . . . . . . . . . . . 2 Used . | . . . . . . . . . . . . Hacking Detections 43 | . 4 . . . 4 14 . 3 7 . 11 Full Trace Events 31 | . 3 . . . 4 12 . 3 6 . 3 Feedback Events 1 | . . . . . . 1 . . . . . Hackware Fried 1 | . . . . . . 1 . . . . . Feedback Blocked 1 | . . . . . . 1 . . . . . Robot Schematics Acquired . | . . . . . . . . . . . . Robots Built . | . . . . . . . . . . . . Authchips . | . . . . . . . . . . . . Time . | . . . . . . . . . . . . Total Robot Build Rating . | . . . . . . . . . . . . Part Schematics Acquired 2 | . . . . . 1 . . . . . 1 Parts Built 5 | . . . . . . 1 . 2 1 . 1 Authchips . | . . . . . . . . . . . . Time 295 | . . . . . . 99 . 98 49 . 49 Total Part Build Rating 10 | . . . . . . 2 . 4 2 . 2 Part Studies Acquired 1 | . . . . . . . . . . . 1 Parts Repaired 5 | . . . . . . 1 . . . . 4 Time 217 | . . . . . . 13 . . . . 204 Parts Recycled . | . . . . . . . . . . . . Recycled Matter 501 | . 87 . . . 357 39 . . 10 . 8 Retrieved Matter 430 | . . . . . 391 39 . . . . . Retrieved Components 3 | . . . . . . . . . . . 3 Parts Scanalyzed . | . . . . . . . . . . . . Part Schematics Acquired . | . . . . . . . . . . . . Parts Damaged . | . . . . . . . . . . . . Bothacking | -11 -10 -10 -10 -9 -8 -7 -7 -7 -6 -6 -6 ------------ Run | Yrd Mat Min Exi Min Mat Fac Was Fac Fac Was Fac Used RIF Installer . | . . . . . . . . . . . . Robots Hacked 6 | . . . 6 . . . . . . . . Non-combat 3 | . . . 3 . . . . . . . . Combat 3 | . . . 3 . . . . . . . . Robot Hacks Applied 6 | . . . 6 . . . . . . . . parse_system 6 | . . . 6 . . . . . . . . Relay Couplers Released 3 | . . . . . . 3 . . . . . Programmers 3 | . . . . . . 3 . . . . . Fabnet Peak Effective % . | . . . . . . . . . . . . Robots Rewired . | . . . . . . . . . . . . Allies Hacked . | . . . . . . . . . . . . Hacks Repelled . | . . . . . . . . . . . . Allies | -11 -10 -10 -10 -9 -8 -7 -7 -7 -6 -6 -6 -------- Run | Yrd Mat Min Exi Min Mat Fac Was Fac Fac Was Fac Total Allies 3 | . . 2 . . . . . . . 1 . Largest Group 2 | . . 2 . . . . . . . 1 . Highest-Rated Group 46 | . . 46 . . . . . . . 31 . Highest-Rated Ally 31 | . . 31 . . . . . . . 31 . Total Orders . | . . . . . . . . . . . . Ally Attacks 17 | . . 4 . . . . . . . 13 . Total Damage 253 | . . 42 . . . . . . . 211 . Kills 2 | . . 2 . . . . . . . . . Allies Corrupted . | . . . . . . . . . . . . Allies Melted . | . . . . . . . . . . . . Intel | -11 -10 -10 -10 -9 -8 -7 -7 -7 -6 -6 -6 ------- Run | Yrd Mat Min Exi Min Mat Fac Was Fac Fac Was Fac Active Infowar (turns) 9945 | . . 809 295 . 2531 3737 91 628 375 52 1427 Optics 610 | . . . . . . . . . 375 52 183 Sensors 1104 | . . 809 295 . . . . . . . . Terrain 5139 | . . . . . 2529 2585 . . . . 25 Traps 1291 | . . . . . . . . . . . 1291 Cloaking 1 | . . . . . . . . . . 1 . ECM 6947 | . . . . . 2491 3737 91 628 . . . Robot Analysis Total . | . . . . . . . . . . . . Derelict Logs Recovered 3 | . . 3 . . . . . . . . . Drone Launches . | . . . . . . . . . . . . Drone Recoveries . | . . . . . . . . . . . . Exploration | -11 -10 -10 -10 -9 -8 -7 -7 -7 -6 -6 -6 ------------- Run | Yrd Mat Min Exi Min Mat Fac Was Fac Fac Was Fac Turns Passed 13525 | 64 1672 1014 792 577 2531 3755 91 854 618 52 1505 Spaces Moved 11055 | 35 827 556 486 280 879 2489 286 713 1507 143 2854 Core 12 | 8 . . . . . . . . . . 4 Treads 4200 | 27 694 556 486 280 879 1278 . . . . . Legs 133 | . 133 . . . . . . . . . . Wheels . | . . . . . . . . . . . . Hover . | . . . . . . . . . . . . Flight 6710 | . . . . . . 1211 286 713 1507 143 2850 Fastest Speed 29 | 50 160 160 160 160 160 30 30 30 29 31 31 Average Speed 84 | 146 165 160 160 160 160 104 30 32 29 31 33 Slowest Speed 240 | 160 240 160 160 160 240 240 30 105 31 31 107 Overloaded Moves . | . . . . . . . . . . . . Propulsion Burnouts . | . . . . . . . . . . . . Robots Hopped 7 | . . . . . . 3 1 1 1 . 1 Potential Cave-ins 4 | . . . . . . . . 4 . . . Cave-ins Triggered 1 | . . . . . . . . 1 . . . Exploration Rate (%) 59 | 4 83 91 91 37 57 47 96 19 31 97 60 Regions Visited 11 Branch Regions 3 Pre-discovered Areas 3 | . . 2 1 . . . . . . . . Known Exits Taken 3 | . 1 . . . 1 . . 1 . . . Unknown Exits Taken 4 | 1 . 1 1 1 . . . . . . . Scrap Searched 2 | . . 1 . 1 . . . . . . . Spaces Dug 69 | . . . . . 13 14 . 12 18 . 12 Terrain Destroyed 405 | . . 1 . . 182 95 . 31 18 . 78 Melee 56 | . . . . . . 14 . 12 18 . 12 Projectile 2 | . . 1 . . . 1 . . . . . AOE 347 | . . . . . 182 80 . 19 . . 66 Terrain Rammed . | . . . . . . . . . . . . Walls Destroyed . | . . . . . . . . . . . . Machines Disabled . | . . . . . . . . . . . . Actions | -11 -10 -10 -10 -9 -8 -7 -7 -7 -6 -6 -6 --------- Run | Yrd Mat Min Exi Min Mat Fac Was Fac Fac Was Fac Total 14598 | 45 1030 624 497 391 1809 3467 289 1295 1629 148 3374 Wait 2776 | 1 96 18 . 102 758 780 . 553 56 4 408 Move 11032 | 34 826 555 485 279 878 2483 283 710 1505 142 2852 Hop 7 | . . . . . . 3 1 1 1 . 1 Pick Up 99 | 4 22 8 . . 15 24 . 1 11 . 14 Fast Attach 57 | 6 3 1 1 . 6 9 1 . 10 . 20 Attach 55 | . 6 2 . . 9 26 . 2 3 . 7 Detach 15 | . 2 . 1 . 1 7 . 1 . . 3 Swap 76 | . 12 2 1 1 20 19 1 4 4 2 10 Drop 115 | . 11 8 1 . 21 24 2 2 15 . 31 Fire 291 | . 52 30 . 9 101 78 1 5 2 . 13 Melee 75 | . . . 8 . . 14 . 16 22 . 15 Ram . | . . . . . . . . . . . . Kick . | . . . . . . . . . . . . Crush . | . . . . . . . . . . . . Escape Stasis . | . . . . . . . . . . . . Rewire . | . . . . . . . . . . . . Trap . | . . . . . . . . . . . . Miscellaneous . | . . . . . . . . . . . . Route ------- -11/Scrapyard -10/Materials (discovered 5 exits: [*Mat x3] / *Min / [*Sub]) -10/Mines (discovered 3 exits: [*Mat x2] / *Exi) -10/Exiles (discovered 2 exits: [*Min x2]) -9/Mines -8/Materials -7/Factory (discovered 3 exits: *Fac / Low x2) -7/Waste -7/Factory (discovered 2 exits: *Fac x2) -6/Factory -6/Waste -6/Factory (discovered 6 exits: *Fac x4 / *Low x2) History --------- Turn | Location | Event 2 | -11/Scrapyard | Met Revision 17 12 | -11/Scrapyard | Discovered new exit (range 16) 65 | -11/Scrapyard | Entered Materials 306 | -10/Materials | Build established: Mutant 665 | -10/Materials | Derelicts attacked the area 818 | -10/Materials | Discovered new exit (range 16) 886 | -10/Materials | Discovered new exit (range 10) 970 | -10/Materials | Discovered new exit (range 15) 1189 | -10/Materials | Build established: Scavenger-Mutant 1254 | -10/Materials | Core integrity fell below 50% 1476 | -10/Materials | Identified exit to Mines 1665 | -10/Materials | Discovered new exit (range 3) 1737 | -10/Materials | Entered Mines 1745 | -10/Mines | Met a Derelict bent on vengeance 1895 | -10/Mines | Discovered new exit (range 4) 1937 | -10/Mines | Found a damaged Exp. Sensor Array with a note attached 1941 | -10/Mines | Found Prototype Device 1942 | -10/Mines | Identified Exp. Sensor Array 2006 | -10/Mines | Learned location of Zion (-7) 2020 | -10/Mines | Learned location of Mines (-9) 2093 | -10/Mines | Discovered new exit (range 14) 2496 | -10/Mines | Core integrity fell below 20% 2743 | -10/Mines | Deemed a non-threat by the Exiles lab entrance 2743 | -10/Mines | Discovered new exit (range 5) 2751 | -10/Mines | Entered Exiles 2774 | -10/Exiles | Discovered new exit (range 15) 2812 | -10/Exiles | Met 8R-AWN 2862 | -10/Exiles | Met EX-HEX 2940 | -10/Exiles | Met EX-BIN 2968 | -10/Exiles | Aligned with FarCom system 2970 | -10/Exiles | Given EX-Vault access code 3037 | -10/Exiles | Opened EX-Vault 3048 | -10/Exiles | Found 0b10 Alert Chip 3088 | -10/Exiles | Warned to stay clear of 0b10 Research branches 3134 | -10/Exiles | Met EX-DEC 3257 | -10/Exiles | Visited The Gauntlet 3524 | -10/Exiles | Discovered new exit (range 14) 3543 | -10/Exiles | Left Exiles lab with 0b10 Alert Chip 3543 | -10/Exiles | Entered Mines 3587 | -9/Mines | Discovered new exit (range 14) 3963 | -9/Mines | Assembled infested the area 4120 | -9/Mines | Entered Materials 4120 | -8/Materials | Evolved 4 slots: Propulsion x1, Utility x3 4427 | -8/Materials | Build established: Scavenger-Skirmisher 4567 | -8/Materials | Garrison activated, responded to threat 4893 | -8/Materials | Build established: Skirmisher 6048 | -8/Materials | Destroyed 9 combat bots 6617 | -8/Materials | Discovered new exit (range 4) 6624 | -8/Materials | Identified exit to Factory 6651 | -8/Materials | Entered Factory 6651 | -7/Factory | Evolved 2 slots: Utility x2 7240 | -7/Factory | Garrison activated, responded to threat 7730 | -7/Factory | Hacking Suite fried by hacking feedback 8126 | -7/Factory | Discovered new exit (range 13) 8296 | -7/Factory | Fabricated Imp. Flight Unit? 8463 | -7/Factory | Cargo convoy interrupted 9050 | -7/Factory | Lost 3 parts (1p1n1w) 9294 | -7/Factory | Lost 6 parts (1p2n2u1w) 9553 | -7/Factory | Build established: Mutant 10091 | -7/Factory | Repaired ECM Suite 10177 | -7/Factory | Build established: Scavenger-Sprinter 10281 | -7/Factory | Identified exit to Lower Caves 10286 | -7/Factory | Assembled infested ambush trap array 10375 | -7/Factory | Garrison activated, responded to threat 10406 | -7/Factory | Sucked down chute 10406 | -7/Factory | Entered Waste 10406 | -7/Waste | The area was eerily silent 10487 | -7/Waste | Discovered new exit (range 13) 10497 | -7/Waste | Identified exit to Factory 10497 | -7/Waste | Entered Factory 10508 | -7/Factory | Discovered new exit (range 7) 10510 | -7/Factory | Identified exit to Factory 10655 | -7/Factory | Fabricated Imp. Flight Unit? 11094 | -7/Factory | Fabricated Imp. Flight Unit? 11125 | -7/Factory | Crushed by falling debris 11300 | -7/Factory | Garrison activated, responded to threat 11303 | -7/Factory | Core integrity fell below 50% 11347 | -7/Factory | Discovered exit to Factory (range 14) 11351 | -7/Factory | Entered another Factory area 11351 | -6/Factory | Evolved 2 slots: Propulsion x1, Utility x1 11570 | -6/Factory | Central database locked down 11653 | -6/Factory | Build established: Sprinter 11927 | -6/Factory | Fabricated Imp. Flight Unit? 11969 | -6/Factory | Sucked down chute 11969 | -6/Factory | Entered Waste 11970 | -6/Waste | Met a frightened Derelict 11971 | -6/Waste | Spotted C-40 Crusher 11975 | -6/Waste | Spotted C-40 Crusher 11984 | -6/Waste | EMP discharged 12005 | -6/Waste | Spotted C-40 Crusher 12007 | -6/Waste | Spotted C-40 Crusher 12007 | -6/Waste | Spotted C-40 Crusher 12012 | -6/Waste | Spotted C-40 Crusher 12014 | -6/Waste | Discovered new exit (range 22) 12020 | -6/Waste | Identified exit to Factory 12021 | -6/Waste | Entered Factory 12267 | -6/Factory | Discovered new exit (range 5) 12268 | -6/Factory | Identified exit to Lower Caves 12305 | -6/Factory | Fabricated Imp. Flight Unit? 12498 | -6/Factory | Build established: Hacker-Sprinter 12699 | -6/Factory | Discovered exit to Lower Caves (range 8) 12827 | -6/Factory | Repaired Imp. Flight Unit 12879 | -6/Factory | Repaired Imp. Flight Unit 12946 | -6/Factory | Repaired Imp. Flight Unit? 13071 | -6/Factory | Build established: Hacker-Mutant 13099 | -6/Factory | Identified exit to Factory 13293 | -6/Factory | Repaired Imp. Flight Unit 13523 | -6/Factory | Core integrity fell below 50% 13526 | -6/Factory | Cargo convoy interrupted 13526 | -6/Factory | Core integrity fell below 20% 13526 | -6/Factory | Destroyed by Y-54 Guardian with Flak Gun Last Messages --------------- 13520_ Knocked back. 13522_ Sml. Storage Unit destroyed. 13522_ Lgt. Fission Core+ destroyed. 13523_ Adv. Weight Redist. System destroyed. 13525_ C-45 Heavy ARC bursts open, deploying its payload. 13525_ H-66 Slayer unfolds itself. 13525_ X-62 Marksman unfolds itself. 13525_ P-60 Hacker unfolds itself. 13525_ E-15 Imp unfolds itself. 13525_ C-45 Heavy ARC bursts open, deploying its payload. 13525_ P-60 Hacker unfolds itself. 13525_ H-66 Slayer unfolds itself. 13525_ X-67 Chaingunner unfolds itself. 13525_ E-15 Imp unfolds itself. 13526_ ALERT: Cargo convoy interrupted, initiating access lockdown. 13526_ Penetrated by Slug. 13526_ Hacking Suite blown off. 13526_ Adv. Hacking Suite blown off. 13526_ E-15 Imp destroyed. 13526_ S-27 Virus destroyed. Map ----- +----------------------------------------------------+ | #???????????????????????????????????????# | | "" #???????????????????????????????????????# | | "" #???????????????????????????????????????# | | "" #???????????????????????????????????????# | | " #???????????????????????????????????????# | | #???????????????????????????????????????# | | #???????????????????????????????????????# | | ###+###???????????????????????????????????????# | | #?????????????????????????????????????????#### | | ###########??????????????????????????????????? | | ## #??????????????????????????????????? | | ## !#????????? ??????????????????????? | | /##### ! #?# """ #?????????????????????? | | + ! #?# """ #?????????????????????? | | ###### ! #?# """ #??????????????????????? | | #????# ! #?# #??????????????????????? | | #????# #?# #???????????????????????? | | #????# ! ! #?# " " #???????????????????????? | | #????# #?# "Y" ?????#########???????????? | | #????#####/####?? """ ?????? ##??????????? | | ??????# p #####;####+### ??????????? | | ####### Y% s A ?????????? | | ""ss p%p ?????????? | | "T p = hix< ????????? | | ps !%!% h Hp ????????? | | ####### s |! @e xh ????????? | | #??# ##########;##; ????????? | | #??####+####??????? ?? #???????????? | | #???????????????? #???#######???????????? | | #??????????????# #?????????????????????? | | #??????????????# #?????????????????????? | | #??????????????# #?????????????????????? | | #??????????????#! ! * #?????????????????????? | | #??????????????# #?????????????????????? | | ####??????????????#########??????????????????????? | | | | | | | | | | | | | | | | | | | | | | | | | | | | | | | +----------------------------------------------------+ Best States ------------- Heat Dissipation 48 Energy Generation 21 Energy Capacity 325 Matter Stores 300 Matter Capacity 300 Sight Range 22 Robot Scan Range 20 Terrain Scan Range 16 Terrain Scan Density 410 ECM Strength 1 Additional Mass Support 9 Corruption Containment 8 Armor Coverage 375 Resistance: KI 30 Propulsion Shielding 33 Evasion (%) 73 Recoil Reduction 3 Offensive Hacking 44 Defensive Hacking 12 Item Schematics ----------------- Imp. Flight Unit | -8/Materials | Hacked Cld. VTOL Module | -6/Factory | Hacked Robot Schematics ------------------ None Fabricated ------------ Imp. Flight Unit | x1 | -7/Factory Imp. Flight Unit | x1 | -7/Factory Imp. Flight Unit | x1 | -7/Factory Imp. Flight Unit | x1 | -6/Factory Imp. Flight Unit | x1 | -6/Factory Repaired ---------- ECM Suite | 10% | -7/Factory Imp. Flight Unit | 42% | -6/Factory Imp. Flight Unit | 60% | -6/Factory Imp. Flight Unit | 70% | -6/Factory Imp. Flight Unit | 72% | -6/Factory Studied --------- Lgt. Fission Core | -6/Factory | Hacked Alien Tech Used ----------------- None Achievements -------------- Analysis Probe Below Botjacking Construction Begets Destruction Ew, Corruption Heavy Suspicion I Have A Map? I Survived The Infestation Item+ Jackpot Overwhelming Party Time Prolific Hacker Resistances Are Futile Sixth Sense Spot Them First You Again Challenges ------------ None Game ------ Seed SensorCommPerforator Manual? 0 Play Time 03:28:27 Cumulative 24.3 hours Start 2025.10.25 @ 18:51:56 End 2025.10.25 @ 22:31:58 Sessions 1 Manual Loads 0 Difficulty Rogue Special Mode None Game No. 20 Rogue 20 Adventurer 0 Explorer 0 Win Type - Total 0 Types 0/0/0/0/0/0/0/0/0/0 Lore% 9 Gallery% 24 Achievement% 15 Wizard Run 0 Options --------- Layout 0 ASCII 0 Keyboard 0 Movement Mouse Keybinds 1 Fullscreen 2 Font 24/Smallcaps Map View 76x50 Zoom Use 0% Tactical HUD 1 Map Filters NONE Filters NONE Steam 1 RUN: 547fc580-e49e-4f8f-8ff3-e7f0b8a84cd5